Cogmind - Beta 16 @@@ ROGUE MODE // 2025.10.22 @ 23:34:55 Player: Petvaria Result: Destroyed by Y-54 Guardian with Flak Gun Performance ------------- Evolutions (0) 0 Regions Visited (3) 600 Robots Destroyed (21) 105 Value Destroyed (447) 447 Prototype IDs (12) 240 Alien Tech Used (0) 0 Bonus (-41) -41 TOTAL SCORE: 1351 Bonus ------- Friendly Fire -41 Cogmind --------- Core Integrity 0/250 Matter 255/300 Energy 180/180 System Corruption 3% Temperature Cool (36) Movement Core (500) Ox9 Location -7/Recycling Parts ------- > --- POWER (1) -------- Meta Core > --- PROPULSION (2+1) - (None) > --- UTILITY (2) ------ Large Storage Unit > --- WEAPON (2+1) ----- Battle Cannon > --- INVENTORY (15) --- Ion Engine Subdweller Power Source Subdweller Power Source Subdweller Power Source Subdweller Monowheel Medium Storage Unit Seismic Detector Propulsion Shielding Medium Laser Subdweller Beam Cannon Light Assault Rifle Battle Rifle Subdweller Machine Gun Datajack Peak State ------------ > --- POWER ------------ Meta Core > --- PROPULSION ------- Light Treads Subdweller Monowheel > --- UTILITY ---------- Large Storage Unit Scrap Shield > --- WEAPON ----------- Heavy Battle Rifle Battle Cannon > --- INVENTORY -------- Ion Engine Subdweller Power Source Subdweller Power Source Subdweller Power Source Medium Storage Unit Seismic Detector Propulsion Shielding Medium Laser Subdweller Beam Cannon Assault Rifle Light Assault Rifle Battle Rifle Subdweller Machine Gun Datajack [Rating: 29] Favorites ----------- Power Meta Core Engine Ion Engine Power Core Meta Core Propulsion Light Treads Treads Light Treads Wheel Subdweller Monowheel Utility Large Storage Unit Device Seismic Detector Storage Large Storage Unit Protection Scrap Shield Weapon Battle Cannon Energy Gun Medium Laser Ballistic Gun Heavy Battle Rifle Ballistic Cannon Battle Cannon Build | -11 -10 -10 -7 ------- Run | Yrd Mat Sub Rec Slots Evolved . | . . . . Power . | . . . . Propulsion . | . . . . Utility . | . . . . Weapon . | . . . . Parts Attached 17 | 7 4 6 . Power 2 | 1 . 1 . Engine 1 | 1 . . . Core 1 | . . 1 . Reactor . | . . . . Propulsion 3 | 2 . 1 . Treads 2 | 2 . . . Leg . | . . . . Wheel 1 | . . 1 . Hover . | . . . . Flight . | . . . . Utility 5 | 2 2 1 . Device 2 | 1 1 . . Storage 2 | 1 1 . . Processor . | . . . . Hackware . | . . . . Protection 1 | . . 1 . Artifact . | . . . . Weapon 7 | 2 2 3 . Energy Gun 1 | . 1 . . Energy Cannon . | . . . . Ballistic Gun 5 | 2 1 2 . Ballistic Cannon 1 | . . 1 . Launcher . | . . . . Special Weapon . | . . . . Impact Weapon . | . . . . Slashing Weapon . | . . . . Piercing Weapon . | . . . . Special Melee Weapon . | . . . . Unidentified Prototypes . | . . . . Parts Lost 6 | . 1 1 4 Power . | . . . . Propulsion 2 | . . 1 1 Utility 2 | . 1 . 1 Weapon 2 | . . . 2 Highest Loss Streak 4 | . 1 1 4 To Critical Strikes . | . . . . Average Backups 11 | 1 4 13 14 Power 2 | . 1 3 4 Propulsion . | . . . . Utility 2 | . . 2 3 Weapon 5 | . 2 6 5 Tool/Special . | . . . . Unused Backups 11 | . . 3 8 Power 4 | . . 1 3 Propulsion . | . . . . Utility 3 | . . 1 2 Weapon 3 | . . 1 2 Tool/Special 1 | . . . 1 Average Slot Usage (%) 73 | . 98 69 58 Engine 3 | . 14 1 . Core 7 | . . 8 10 Treads 16 | . 27 14 9 Wheel 1 | . . 1 . Device 8 | . 12 8 . Storage 11 | . 14 10 10 Protection 2 | . . 1 10 Energy Gun 1 | . . 2 . Ballistic Gun 13 | . 27 11 9 Ballistic Cannon 6 | . . 7 10 Peak Build Rating 29 | 7 7 29 29 Average Rating 19 | 5 6 22 26 On Entrance 10 | . 7 7 29 Avg Prop Armor Cover (%) 4 | . . 4 . Naked Turns . | . . . . Heaviest Build 51 | 13 30 51 51 Greatest Support 40 | 40 40 40 20 Greatest Overweight (x) 16 | . . 2 16 Average Overweight (x) . | . . . 2 Largest Inventory Capacity 15 | 8 15 15 15 Average Capacity 13 | 7 8 15 15 Most Carried 15 | 3 8 15 15 Average Carried 11 | 1 4 14 14 Final Capacity 15 | 8 15 15 15 Final Carried 15 | 2 8 15 14 Class Distribution -------------------- 100% | Mutant Dominant Class ---------------- Mutant | -10/Materials Mutant | -10/Subcaves Mutant | -7/Recycling Resources | -11 -10 -10 -7 ----------- Run | Yrd Mat Sub Rec Matter Collected 1105 | 293 213 427 172 Remotely . | . . . . Salvage Created 731 | 131 462 138 . Parts 45 | 6 34 5 . Haulers Intercepted 2 | . 2 . . Recyclers Shooed . | . . . . Parts Field Recycled . | . . . . Retrieved Matter . | . . . . Parts Self-Destructed 6 | . . 6 . Prevented . | . . . . Parts Restored . | . . . . Kills | -11 -10 -10 -7 ------- Run | Yrd Mat Sub Rec Combat Hostiles Destroyed 14 | . 10 4 . Guns 11 | . 10 1 . Cannons 3 | . . 3 . Classes Destroyed 10 | 3 4 3 . Worker 2 | 1 1 . . Builder 1 | . 1 . . Tunneler 1 | 1 . . . Hauler 2 | . 2 . . Recycler 1 | 1 . . . Swarmer 4 | . 3 1 . Grunt 8 | . 7 1 . Sentry 1 | . . 1 . Subdweller 1 | . . 1 . Scientist 1 | . . 1 . Best Kill Streak 4 | 2 4 3 . Combat Bots Only 3 | . 3 3 . Max Kills in Single Turn 2 | 1 2 1 . Gunslinging 1 | . 1 . . Exploded . | . . . . Melee . | . . . . Uniques/NPCs Destroyed . | . . . . Combat | -11 -10 -10 -7 -------- Run | Yrd Mat Sub Rec Hostile Shots Fired 158 | . 65 21 72 Missed 47 | . 18 6 23 Hits 111 | . 47 15 49 Projectile 111 | . 47 15 49 Critical Strikes 1 | . . 1 . Damage Taken 1169 | . 462 326 381 Core 251 | . 116 85 50 Absorbed by Shields . | . . . . Core Remaining (%) 100 | 100 . . . Volleys Fired 137 | 13 42 78 4 Largest 2 | 2 2 2 2 Hottest 66 | 40 40 66 53 Shots Fired 215 | 26 82 99 8 Gun 148 | 26 82 36 4 Cannon 67 | . . 63 4 Launcher . | . . . . Special . | . . . . Kinetic 215 | 26 82 99 8 Thermal . | . . . . Explosive . | . . . . Electromagnetic . | . . . . Robot Hit Streak 18 | 3 10 18 3 Robot Miss Streak 7 | 3 7 2 1 Penetration Max . | . . . . Secondary Targets 1 | . 1 . . Max Gunslinging Chain 1 | . 1 . . Shots Hit Robots 94 | 13 49 26 6 Core Hits 42 | 6 27 7 2 Critical Kills . | . . . . Critical Parts Destroyed 1 | . 1 . . Critical Strikes 2 | . 1 1 . Destroy 1 | . 1 . . Blast 1 | . . 1 . Melee Attacks . | . . . . Impact . | . . . . Slashing . | . . . . Piercing . | . . . . Sneak Attacks . | . . . . Combat Hostiles . | . . . . Follow-up Attacks . | . . . . Damage Inflicted 1267 | 139 538 493 97 Guns 1121 | 139 538 393 51 Cannons 146 | . . 100 46 Explosions . | . . . . Melee . | . . . . Ramming . | . . . . Kinetic 1267 | 139 538 493 97 Thermal . | . . . . Explosive . | . . . . Electromagnetic . | . . . . Impact . | . . . . Slashing . | . . . . Piercing . | . . . . Highest Corruption 3 | . 3 3 3 Average Corruption 2 | . 2 3 3 Corruption Purged . | . . . . Corruption Blocked . | . . . . Effects 63 | . 11 48 4 Message Errors 13 | . 2 11 . Matter Fused 16 | . 2 13 1 Heat Flow Errors 6 | . . 6 . Energy Discharges 11 | . 2 7 2 Parts Rejected 1 | . 1 . . Parts Fused 1 | . . 1 . Data Loss (minor) 6 | . 2 3 1 Data Loss (major) 3 | . . 3 . Misfires 2 | . . 2 . Alerts 2 | . . 2 . Weapon Failures 2 | . 2 . . Overload Shots . | . . . . Overflow Damage . | . . . . Projectiles . | . . . . Explosions . | . . . . Melee . | . . . . Knockbacks . | . . . . Impact . | . . . . Kinetic . | . . . . Secondary . | . . . . Self-Inflicted Damage . | . . . . Shots . | . . . . Rammed . | . . . . Targets Rammed . | . . . . Kicked . | . . . . Crushed . | . . . . Highest Temperature 288 | . 12 288 24 Average Temperature 68 | . 7 108 14 Received Heat Transfer 623 | . 108 389 126 Siege Activations . | . . . . Martial Activations . | . . . . Shielding Activations . | . . . . Robots Disrupted . | . . . . Combat Hostiles . | . . . . Robots Corrupted . | . . . . Combat Hostiles . | . . . . Parts Fried . | . . . . Impact Corruptions . | . . . . Robots Melted . | . . . . Combat Hostiles . | . . . . Parts Melted . | . . . . Heat Transferred . | . . . . Parts Sabotaged . | . . . . Parts Stolen . | . . . . Parts Stripped . | . . . . Power Chain Reactions . | . . . . Alert | -11 -10 -10 -7 ------- Run | Yrd Mat Sub Rec Maximum Alert Level . | . . . . Low Security (%) 100 | 100 100 . 100 Level 1 . | . . . . Level 2 . | . . . . Level 3 . | . . . . Level 4 . | . . . . Level 5 . | . . . . High Security . | . . . . Max Security . | . . . . Peak Influence 91 | 10 91 . 36 Initial 36 | . . . 36 Average 18 | . 32 . 4 Influence Increases 419 | 15 268 135 1 Destroy 0b10 Robot/C 260 | . 200 60 . Destroy 0b10 Robot/NC 35 | 15 20 . . Destroy Leader 44 | . 44 . . Successful Hack 4 | . 4 . . Destroy Structure 1 | . . . 1 Lose Combat Pursuer 75 | . . 75 . Influence Decreases 419 | 15 242 86 76 Entered New Map 53 | . . 14 39 Time Decay 355 | 15 232 72 36 Lost Part 11 | . 10 . 1 Squads Dispatched 3 | . 3 . . Investigation 2 | . 2 . . Extermination . | . . . . Reinforcement 1 | . 1 . . Assault . | . . . . Garrison . | . . . . Intercept . | . . . . Searches Triggered . | . . . . Construction Impeded . | . . . . Haulers Reinforced . | . . . . Active Scanning Responses . | . . . . Cargo Convoy Interrupts . | . . . . Stealth | -11 -10 -10 -7 --------- Run | Yrd Mat Sub Rec Distress Signals 3 | . 3 . . Communications Jammed . | . . . . Distress Signals . | . . . . Times Spotted 35 | . 22 12 1 Peak Tracking Total 6 | . 5 6 1 Tactical Retreats 1 | . . 1 . Traps | -11 -10 -10 -7 ------- Run | Yrd Mat Sub Rec Traps Triggered 4 | . 4 . . Indirectly . | . . . . Trap Hack Attempts . | . . . . Triggered . | . . . . Disarmed . | . . . . Reprogrammed . | . . . . Reused . | . . . . Traps Extracted . | . . . . Installed . | . . . . Triggered . | . . . . Machines | -11 -10 -10 -7 ---------- Run | Yrd Mat Sub Rec Machines Disabled 1 | . . 1 . Max in Single Turn 1 | . . 1 . Machines Repaired . | . . . . Machines Dismantled . | . . . . Machines Sabotaged . | . . . . Overloaded Fab Kills . | . . . . Hacking | -11 -10 -10 -7 --------- Run | Yrd Mat Sub Rec Machines Accessed 4 | . 3 1 . Terminals 3 | . 3 . . Fabricators . | . . . . Repair Stations . | . . . . Recycling Units . | . . . . Scanalyzers . | . . . . Garrison Access . | . . . . Total Hacks 7 | . 6 1 . Successful 4 | . 3 1 . Failed 3 | . 3 . . Catastrophic . | . . . . Database Lockouts . | . . . . Manual 6 | . 6 . . Terminals 6 | . 6 . . Fabricators . | . . . . Repair Stations . | . . . . Recycling Units . | . . . . Scanalyzers . | . . . . Garrison Access . | . . . . Terminal Hacks 2 | . 1 1 . Recall Investigation 1 | . 1 . . Proto ID Catalog 1 | . . 1 . Fabricator Hacks . | . . . . Repair Station Hacks . | . . . . Recycling Unit Hacks . | . . . . Scanalyzer . | . . . . Garrison Access Hacks . | . . . . Unauthorized Hacks 2 | . 2 . . Terminals 2 | . 2 . . Botnet 2 | . 2 . . Fabricators . | . . . . Repair Stations . | . . . . Recycling Units . | . . . . Scanalyzers . | . . . . Garrison Access . | . . . . Data Cores Recovered . | . . . . Used . | . . . . Hacking Detections 1 | . 1 . . Full Trace Events . | . . . . Feedback Events . | . . . . Feedback Blocked . | . . . . Robot Schematics Acquired . | . . . . Robots Built . | . . . . Authchips . | . . . . Time . | . . . . Total Robot Build Rating . | . . . . Part Schematics Acquired . | . . . . Parts Built . | . . . . Authchips . | . . . . Time . | . . . . Total Part Build Rating . | . . . . Part Studies Acquired . | . . . . Parts Repaired . | . . . . Time . | . . . . Parts Recycled . | . . . . Recycled Matter . | . . . . Retrieved Matter . | . . . . Retrieved Components . | . . . . Parts Scanalyzed . | . . . . Part Schematics Acquired . | . . . . Parts Damaged . | . . . . Bothacking | -11 -10 -10 -7 ------------ Run | Yrd Mat Sub Rec Used RIF Installer . | . . . . Robots Hacked . | . . . . Non-combat . | . . . . Combat . | . . . . Robot Hacks Applied . | . . . . Relay Couplers Released . | . . . . Fabnet Peak Effective % . | . . . . Robots Rewired . | . . . . Allies Hacked . | . . . . Hacks Repelled . | . . . . Allies | -11 -10 -10 -7 -------- Run | Yrd Mat Sub Rec Total Allies . | . . . . Largest Group . | . . . . Highest-Rated Group . | . . . . Highest-Rated Ally . | . . . . Total Orders . | . . . . Ally Attacks . | . . . . Total Damage . | . . . . Kills . | . . . . Allies Corrupted . | . . . . Allies Melted . | . . . . Intel | -11 -10 -10 -7 ------- Run | Yrd Mat Sub Rec Active Infowar (turns) 2647 | 13 619 2015 . Seismic 2647 | 13 619 2015 . Robot Analysis Total . | . . . . Derelict Logs Recovered 3 | . . 3 . Drone Launches . | . . . . Drone Recoveries . | . . . . Exploration | -11 -10 -10 -7 ------------- Run | Yrd Mat Sub Rec Turns Passed 3736 | 174 668 2515 379 Spaces Moved 1793 | 82 321 1277 113 Core 6 | 5 . . 1 Treads 1492 | 77 321 982 112 Legs . | . . . . Wheels 295 | . . 295 . Hover . | . . . . Flight . | . . . . Fastest Speed 50 | 50 160 130 320 Average Speed 184 | 153 160 180 324 Slowest Speed 850 | 160 160 320 850 Overloaded Moves . | . . . . Propulsion Burnouts . | . . . . Robots Hopped . | . . . . Potential Cave-ins . | . . . . Cave-ins Triggered . | . . . . Exploration Rate (%) 42 | 6 70 72 23 Regions Visited 3 Branch Regions 2 Pre-discovered Areas 3 | . . 3 . Known Exits Taken . | . . . . Unknown Exits Taken 3 | 1 1 1 . Scrap Searched 5 | . . 5 . Spaces Dug 3 | . . 3 . Terrain Destroyed 4 | . . 3 1 Melee . | . . . . Projectile 4 | . . 3 1 AOE . | . . . . Terrain Rammed . | . . . . Walls Destroyed . | . . . . Machines Disabled . | . . . . Actions | -11 -10 -10 -7 --------- Run | Yrd Mat Sub Rec Total 2019 | 110 399 1390 120 Wait 29 | . 23 6 . Move 1790 | 81 320 1276 113 Hop . | . . . . Pick Up 29 | 9 8 12 . Fast Attach 1 | . . 1 . Attach 12 | 7 2 2 1 Detach 3 | . . 2 1 Swap 9 | . 3 6 . Drop 7 | . 1 5 1 Fire 137 | 13 42 78 4 Melee . | . . . . Ram . | . . . . Kick . | . . . . Crush . | . . . . Escape Stasis . | . . . . Rewire . | . . . . Trap . | . . . . Miscellaneous 2 | . . 2 . Route ------- -11/Scrapyard -10/Materials (discovered 3 exits: [*Mat] / [*Min] / *Sub) -10/Subcaves (discovered 2 exits: [*Mat] / *Rec) -7/Recycling History --------- Turn | Location | Event 4 | -11/Scrapyard | Discovered new exit (range 15) 175 | -11/Scrapyard | Entered Materials 311 | -10/Materials | Build established: Mutant 364 | -10/Materials | Discovered new exit (range 11) 392 | -10/Materials | Discovered new exit (range 13) 835 | -10/Materials | Discovered new exit (range 6) 843 | -10/Materials | Entered Subcaves 844 | -10/Subcaves | Approached by a straggling Scientist 854 | -10/Subcaves | Shifting Twisted Machinery released Battle Cannon 918 | -10/Subcaves | Shifting Twisted Machinery released Sub. Monowheel 1088 | -10/Subcaves | Learned location of Storage (-7) 1125 | -10/Subcaves | Visited 4L-MR0's lab 1149 | -10/Subcaves | Found Meta Core 1151 | -10/Subcaves | Attached Meta Core, gained temporary slots: Propulsion, Utility, Weapon 1340 | -10/Subcaves | Shifting Twisted Machinery released Sub. Power Source 1353 | -10/Subcaves | Learned location of Zion (-6) 1353 | -10/Subcaves | Met a Zionite searching for "candidates" 1365 | -10/Subcaves | Shifting Twisted Machinery released Sub. Monowheel 1444 | -10/Subcaves | Core integrity fell below 50% 1601 | -10/Subcaves | Shifting Twisted Machinery released Sub. Power Source 1612 | -10/Subcaves | Shifting Twisted Machinery released Sub. Power Source 2006 | -10/Subcaves | A swath of the cavern ceiling suddenly collapsed 2271 | -10/Subcaves | Core integrity fell below 20% 2378 | -10/Subcaves | Learned Materials interactive machine intel 2817 | -10/Subcaves | Discovered new exit (range 14) 3355 | -10/Subcaves | Discovered new exit (range 3) 3358 | -10/Subcaves | Entered Recycling 3737 | -7/Recycling | Destroyed by Y-54 Guardian with Flak Gun Last Messages --------------- System corrupted: Matter fused (-5). System corrupted: Matter fused (-6). S-10 Pest springs to life. EXIT=FOUND LOCATION=UNKNOWN GOAL=ESCAPE Dropped Scrap Shield Fragment. System corrupted: Energy discharge (-36). Connecting with Terminal... Current location identified: Recycling System corrupted: Matter fused (-10). Acquired 86 matter. System corrupted: Component data lost. System corrupted: Energy discharge (-48). Y-54 Guardian springs to life. Hvy. Battle Rifle destroyed. Lgt. Treads destroyed. Scrap Shield destroyed. Temporary Utility slot lost. Assault Rifle destroyed. Map ----- +----------------------------------------------------+ | ?????????????# ! #??????????????????? | | ?????????????# % ! #??????????????????? | | ?????????????# ! % #??????????????????? | | ?????????????# %/ ]#?#######??????????? | | ?????????????# ] ! #?# #??????????? | | ?????????????# ! %#?# """ #####??????? | | ?????????????# ! #?# """ # #??????? | | ?????????????# #?# """ # & #??????? | | ??????????############+###+###### # #??????? | | ???????? + """ # #???##?? | | ???????? ###### """ # #?? #?? | | ???????? !##"" """ + #?? #?? | | ?????????### ! ##"" # #"" ### | | ???????????# !##"T """ # #"Y ""# | | ???????????# ####"" """ # #"" ""# | | ???????????# ### #??#"" """ # #"" ""# | | ???????????#+# #?# #??### # # T# | | ?????????????# ??# #????# # # ""# | | ?????????????+ ??# #????# # # ""# | | ?????????????# ??# #????####### # ""# | | ?????????????# ??# #??????????# # #?? | | ?????????????+ ##+###+##########?# + #?? | | ?????????????## ?# ;#?# # #?? | | ?????????????## ?# ##?# ######?? | | ?????????????# ??+ r#?# #??????? | | ??????????????# ??# @ Y%% #### ##?????? | | ??????????????# ########+##+##### #?????? | | ??????????????# " #?????? | | ??????????????# "T #?????? | | ??????????????# #?????? | | ??????????????# ################# #?????? | | ??????????????# ???????????????????### ###?????? | | ???????????????????????????????????????# #???????? | | ???????????????????????????????????????#+#???????? | | ??????????????????????????????????????? ???????? | | ??????????????????????????????????????? ???????? | | ?????????????????????????????????????? ??????? | | ?????????????????????????????????????? % / ??????? | | ????????????????????????????????????? ! #?????? | | ????????????????????????????????????? ] % #?????? | | ???????????????????????????????????? #?????? | | ???????????????????????????????????? ! #?????? | | ???????????????????????????????????#+###+###?????? | | ?????????????????????????????????????????????????? | | ?????????????????????????????????????????????????? | | ?????????????????????????????????????????????????? | | ?????????????????????????????????????????????????? | | ?????????????????????????????????????????????????? | | ?????????????????????????????????????????????????? | | ?????????????????????????????????????????????????? | +----------------------------------------------------+ Best States ------------- Heat Dissipation 25 Energy Generation 17 Energy Capacity 250 Matter Stores 300 Matter Capacity 300 Sight Range 16 Terrain Scan Density 10 Armor Coverage 800 Evasion (%) 40 Recoil Reduction 2 Item Schematics ----------------- None Robot Schematics ------------------ None Fabricated ------------ Nothing Repaired ---------- Nothing Studied --------- None Alien Tech Used ----------------- None Achievements -------------- Mistaken Identity My Bad Survival Of The Most Covered Challenges ------------ None Game ------ Seed SwordPlexusTearclaws Manual? 0 Play Time 00:18:17 Cumulative 303.5 hours Start 2025.10.22 @ 23:17:52 End 2025.10.22 @ 23:34:55 Sessions 1 Manual Loads 0 Difficulty Rogue Special Mode None Game No. 235 Rogue 235 Adventurer 0 Explorer 0 Win Type - Total 25 Types 12/1/7/2/1/0/0/1/0/1 Lore% 94 Gallery% 87 Achievement% 51 Wizard Run 0 Options --------- Layout 1 ASCII 0 Keyboard 0 Movement Numpad Keybinds 0 Fullscreen 1 Font 24/Proggy Map View 50x35 Zoom Use 0% Tactical HUD 0 Map Filters NONE Filters NONE Steam 1 RUN: 89feb62c-b2c0-4a38-b57f-19fe4c469383